{"text_format":"3","workbook":"xlsx","n_sheets":3,"sheets":["Fassade_13830_24xLx","Listen","T2"],"not_rendered":{"defined_names":2,"comments":1},"read":"whole","date_system":"1900"}

{"sheet":"Fassade_13830_24xLx","index":0,"n_rows":158,"n_cols":8,"rows_kept":158,"merged":[[0,2,0,4],[1,3,1,4],[7,2,7,4],[8,2,8,4],[9,2,9,4],[10,2,10,4],[12,2,12,4],[156,2,156,4]]}
[null,null,"Bestellanzeige CE-Schilder für Fassade (EN 13830)",{"$nulls":3},"Stand:","2025-01-29"]
[null,null,"Schildabmessungen [H x B]: ","L1 (ohne Option Logo, ohne DMC) = 24 * 185 [mm]; L2 (mit Option DMC oder LOGO) = 24 * 201 [mm]; \nL3 (mit Option DMC und Logo) = 24 * 217 [mm]\nL1-K (ohne Logo, ohne DMC) = 24 * 157 [mm]; L2-K (mit Option DMC oder LOGO) = 24 * 173 [mm]; \nL3-K (mit Option DMC und Logo) = 24 * 189 [mm]"]
[]
[null,7,{"$f":"IF(B4=1,'T2'!B2,IF(B4=2,'T2'!B3,IF(B4=3,'T2'!B4,IF(B4=4,'T2'!B5,IF(B4=6,'T2'!B6,IF(B4=7,'T2'!B7,IF(B4=8,'T2'!B8,IF(B4=9,'T2'!B9,IF(B4=11,'T2'!B10)))))))))","v":"An die\nÜberwachungsgemeinschaft für Feuerschutz-, Rauchschutz- \nund Schutzraumabschlüsse Baden-Württemberg e. V.\nSchönestr. 35/1\n70372 Stuttgart"}]
[null,null,{"$f":"IF(B4=1,'T2'!E2,IF(B4=2,'T2'!E3,IF(B4=3,'T2'!E4,IF(B4=4,'T2'!E5,IF(B4=6,'T2'!E6,IF(B4=7,'T2'!E7,IF(B4=8,'T2'!E8,IF(B4=9,'T2'!E9,IF(B4=11,'T2'!E10)))))))))","v":"schilder-bestellungen@feuerschutz-bw.de"}]
[]
[null,null,"Hinweise:"]
[null,"•","Bitte nutzen Sie für jedes Profil-System eine eigenes Bestellformular."]
[null,"•","Dem Besteller ist bekannt, dass die hier gemachten Angaben in seinem Verantwortungsbereich liegen und die Bestellangaben nicht durch den Schildhersteller überprüft werden."]
[null,"•","Dem Besteller ist auch bekannt, dass eine Kennzeichnung der Bauprodukte erst nach erfolgreicher Zertifizierung und Erstellung der Leistungserklärung für das Bauprodukt erfolgen darf. Somit kann die Bestellung frühestens nach durchgeführter Erstinspektion erfolgen."]
[null,"•","Die aus dieser Bestellung resultierende Kennzeichnung entspricht formal der Verordnung 305/2011 (EU-BauPVO) i. V. m. den jeweiligen Produktnormen. Dabei wird der Vorrang der EU-BauPVO vor den harmonisierten Produktnormen berücksichtigt. Für die Kennzeichnung werden die gemäß Anhang III der EU-BauPVO erlaubten sinnvollen Zusammenfassungen genutzt."]
[]
[null,null,"Hiermit bestellen wir verbindlich die nachfolgend durch uns definierten Schilder. "]
[]
[null,null,"Bestelldaten und Bestelltext",{"$nulls":3},"Anzahl Zeichen/Feld","Wo werden Daten benötigt?"]
["@Format",{"$f":"B73+B78+B83+B88+B93+B98+B103+B108+B113+B118+B123+B128+B133+B138+B143+B148","v":0},"Format",{"$f":"IF(B16<9, \"kein Standardformat\",IF(E16=\"CE.41.L1\",\"Schildabmessungen = 24*185\",IF(E16=\"CE.41.L2\",\"Schildabmessungen = 24*201\",IF(E17=\"CE.41.L3\",\"Schildabmessungen = 24*217\",\"\"))))","v":"kein Standardformat"},{"$f":"IF(AND(E55=\"ja\",E56=\"ja\"),\"CE.41.L3\",IF(OR(AND(E55=\"ja\",E56=\"nein\"),AND(E56=\"ja\",E55=\"nein\")),\"CE.41.L2\",\"CE.41.L1\"))","v":"CE.41.L1"},null,null,"M, (Sortierkriterium 3)"]
["@Format-alternativ",null,"Kurzformat",{"$f":"IF(B16>=9,\"kein Kurzformat\",IF(E17=\"CE.41.L1-K\",\"Schildabmessungen = 24*157\",IF(E17=\"CE.41.L2-K\",\"Schildabmessungen = 24*173\",IF(E17=\"CE.41.L3-K\",\"Schildabmessungen = 24*189\",\"\"))))","v":"Schildabmessungen = 24*157"},{"$f":"E16&\"-K\"","v":"CE.41.L1-K"}]
["@Spec",null,"harmonisierte Norm:",null,"EN 13830:2003",null,10,"L"]
["@Antragsteller-NB",null,"Für die Zertifizierung eingebundene notifizierte Stelle \nZertifizierungsstelle: gbd = 2397, IBS = 1322)",{"$nulls":3},4,"S, DMC"]
["@Produkt1",null,"Verwendungszweck nach Norm, Teil 1",null,"Montagesatz für Vorhangfassade nach EN 13830",null,65,"S, DMC"]
["@Produkt2",null,"Verwendungszweck nach Norm Teil 2",{"$nulls":3},65,"S, DMC"]
["@Produkt3",{"$nulls":5},65,"S, DMC"]
["@Anzahl",null,"Anzahl Schilder (Stück):",{"$nulls":3},4,"M, L"]
["@E-H-Jahr",null,"letzte 2 Ziffern des Jahres, in dem der Produkttyp in Verkehr gebracht wurde (erstmals auf dem Markt bereit gestellt wurde)",{"$nulls":3},2,"S, DMC"]
[]
["@Bestelldatum",null,"Datum der Bestellung",{"$nulls":3},10,"L"]
[]
["@BV",null,"Bauvorhaben (BV) oder Projektnummer oder Auftragsnummer bzw. Kommission/Lager",{"$nulls":3},100,"L"]
[null,null,"Angaben zum Hersteller"]
["@B-H-Steller1",null,"Name Hersteller",{"$nulls":3},65,"L, S, DMC"]
["@B-H-Steller2",{"$nulls":5},65]
["@B-H-PLZ-Ort",null,"PLZ und Ort",{"$nulls":3},"6+26","L, S, DMC"]
["@B-H-Strasse",null,"Strasse und Hausnummer",{"$nulls":3},"30+4","L, DMC"]
["@B-H-Land",null,"Land (in GROSSBUCHSTABEN)",null,"DEUTSCHLAND",null,23,"L, DMC"]
[null,null,"Kontaktdaten des Herstellers\n(optionale Angaben, z. B. für DMC)"]
["@B-H-Telefon",null,"Telefon Zentrale: ",{"$nulls":3},20,"DMC"]
["@B-H-Email",null,"E-Mail Zentrale:",{"$nulls":3},50,"DMC"]
["@B-H-web",null,"homepage:",{"$nulls":3},50,"DMC"]
["@B-H-Kontakt",null,"Kontaktperson Hersteller ",{"$nulls":3},70]
["@HWK1",null,"Kennnummer Überwachungsgemeinschaft (HWK-Nr. 1)",null,{"$f":"B4","v":7},null,3,"M (Sortierkriterium 2), L"]
["@HWK2",null,"Pflichtfeld: Kennnummer Herstellwerk (HWK-Nr.):",{"$nulls":3},4,"M (Sortierkriterium 2), L"]
[]
["@Zeile1"]
["@Zeile2"]
["@Zeile3"]
["@Zeile4"]
["@Zeile5"]
["@Zeile6"]
["@Zeile7"]
["@Zeile8"]
["@Zeile9"]
["@Zeile10"]
[null,null,{"$f":"IF(AND(E55=\"\",E56=\"\"),\"Optionen (Pflichtfelder!)\",IF(OR(E55=\"\",E56=\"\"),\"Angaben zu DMC und Logo erforderlich!\",\"Optionen (Pflichtfelder!)\"))","v":"Optionen (Pflichtfelder!)"}]
["@Ue-CE-Logo",null,"CE-Logo",null,"3.0",null,null,"S"]
["@DMC",null,"DMC",null,"Nein",null,null,"S, L"]
["@B-H-Logo",null,"Logo Hersteller",null,"Nein",null,null,"S, L"]
["@SchildNr",null,"Schildnummer",null,"ja",null,20,"M, S"]
["@Material",null,"Material:",null,"E",null,null,"M (Sortierkrierium 1), L"]
[]
["@Errichter1"]
["@Errichter2"]
["@E-PLZ-Ort"]
["@E-Strasse"]
["@E-Land"]
["@E-Telefon"]
["@E-Email"]
["@E-web",null,null,{"$f":"IF(OR(D68=\"\",D68=\"npd\"),\"Nummer Leistungserklärung fehlt!\",\"\")","v":"Nummer Leistungserklärung fehlt!"}]
["@DoP",null,"Nummer der Leistungserklärung (DoP)",null,{"$f":"IF(AND(D68<>\"\",D143<>\"npd\"),\"DoP: \"&D68,\"DoP: ____________\")","v":"DoP: ____________"},null,30,"L, S, DMC"]
["@Produkttyp",null,"Produkttyp",{"$f":"IF(AND(OR(D70=\"NPD\",D70=\"\"),D71=\"\"),\"Angabe Produkttyp fehlt!\",\"\")","v":"Angabe Produkttyp fehlt!"},{"$f":"IF(AND(AND(D70<>\"npd\",D70<>\"\"),D71=\"\"),D70,IF(AND(D70=\"npd\",D71<>\"\"),D71,IF(AND(D70<>\"npd\",D71<>\"\"),D71,IF(AND(D70=\"npd\",D71=\"\"),\"\",\"\"))))","v":""},null,65,"L, S, DMC"]
["2",null,"Produkttyp A (Wenn Profilsystem, dann gleichzeitig als Kenncode verwendbar.)\n(z. B. Profilsystem = Satz aus repräsentativen Stufen und Klassen)"]
["3",null,"Produkttyp (Z. B. Profilserie, Handelsname oder dergleichen)"]
["@Kenncode",null,"Kenncode des Produkttyps (s. Art. 9 EU-BauPVO)",null,{"$f":"IF(AND(D72<>\"npd\",D72<>\"\"),\"Kenncode: \"&D72,\"\")","v":""},null,30,"S, DMC"]
["@WM1",{"$f":"IF(E73<>\"\",\"1\",\"0\")","v":"0"}]
["2"]
["3"]
["4"]
["5"]
["@WM2",{"$f":"IF(E78<>\"\",\"1\",\"0\")","v":"0"}]
["2"]
["3"]
["4"]
["5"]
["@WM3",{"$f":"IF(E83<>\"\",\"1\",\"0\")","v":"0"}]
["2"]
["3"]
["4"]
["5"]
["@WM4",{"$f":"IF(E88<>\"\",\"1\",\"0\")","v":"0"}]
["2"]
["3"]
["4"]
["5"]
["@WM5",{"$f":"IF(E93<>\"\",\"1\",\"0\")","v":"0"},"4.9 Brandverhalten der Baustoffe (Klassifizierung nach EN 13501-1)",null,null,{"$f":"LEN(E93)","v":0},20,"S, DMC"]
["2",{"$nulls":4},0]
["3",{"$nulls":4},0]
["4",{"$nulls":4},0]
["5",{"$nulls":4},0]
["@WM6",{"$f":"IF(E98<>\"\",\"1\",\"0\")","v":"0"},"4.8 Feuerwiderstand (nach EN 15301-2:2023) \n(Nur bei Brandschutzfassade. Wenn Feuerwiderstand, dann auch nachfolgende Angaben.)",{"$f":"IF(AND(AND(D99<>\"\",D99<>\"npd\"),OR(D100=\"npd\",D100=\"\")),\"Angaben für Raumabschluss, Widerstandsdauer und Klassifizierung erforderlich.\",IF(AND(AND(D99<>\"\",D99<>\"npd\"),OR(D101=\"npd\",D101=\"\")),\"Angaben für Raumabschluss, Widerstandsdauer und Klassifizierung erforderlich.\",IF(AND(OR(D99=\"npd\",D99=\"\"),OR(AND(D100<>\"\",D100<>\"npd\"),AND(D101<>\"\",D101<>\"npd\"))),\"Angaben für Raumabschluss, Widerstandsdauer und Klassifizierung erforderlich.\",\"\")))","v":""},{"$f":"IF(AND(D99<>\"npd\",D99<>\"\"),D99&\" \"&D100&D101,\"\")","v":""},0,20,"S, DMC"]
["2",null,"Raumabschluss, Wärmedämmung und Strahlung:"]
["3",null,"Widerstandsdauer:"]
["4",null,"Klassifizierung des Feuerwiderstandes \n     von innen nach außen: (i→o)\n     von außen nach innen: (o→i)\n     von innen nach außen und von außen nach innen: (o↔i)"]
["5",{"$nulls":4},0]
["@WM7",{"$f":"IF(E103<>\"\",\"1\",\"0\")","v":"0"},"4.5 Schlagregendichtheit",null,{"$f":"IF(AND(D103<>\"NPD\",D103<>\"\"),\"Schlagregen: \"&D103,\"\")","v":""},{"$f":"LEN(E103)","v":0},20,"S, DMC"]
["2",{"$nulls":4},{"$f":"LEN(E104)","v":0}]
["3",{"$nulls":4},0]
["4",{"$nulls":4},0]
["5",{"$nulls":4},0]
["@WM8",{"$f":"IF(E108<>\"\",\"1\",\"0\")","v":"0"},"4.2 Beständigkeit gegenüber Eigengewicht/Eigenlast  [kN/m²]:",null,{"$f":"IF(OR(D108=\"\",D108=\"npd\"),\"\",\"Eigenlast [kN/m²]: \"&D108)","v":""},0,22,"S, DMC"]
["2",{"$nulls":4},0]
["3",{"$nulls":4},0]
["4",{"$nulls":4},0]
["5",{"$nulls":4},0]
["@WM9",{"$f":"IF(E113<>\"\",\"1\",\"0\")","v":"0"},"4.1 Widerstand gegen Windlast [kN/m²]:",null,{"$f":"IF(OR(D113=\"\",D113=\"npd\"),\"\",\"Windlast [kN/m²]: \"&D113)","v":""},0,20,"S, DMC"]
["2",{"$nulls":4},0]
["3",{"$nulls":4},0]
["4",{"$nulls":4},0]
["5",{"$nulls":4},0]
["@WM10",{"$f":"IF(E118<>\"\",\"1\",\"0\")","v":"0"},"4.3 Stoßfestigkeit Innen/Außen",{"$f":"IF(AND(OR(D119=\"\",D119=\"npd\"),OR(D120=\"\",D120=\"npd\")),\"\",IF(AND(OR(D119<>\"\",D119<>\"npd\"),OR(D120=\"\",D120=\"npd\")),\"Angaben für Innen und Außen erforderlich.\",IF(AND(OR(D119=\"\",D119=\"npd\"),OR(D120<>\"\",D120<>\"npd\")),\"Angaben für Innen und Außen erforderlich.\",\"\")))","v":""},{"$f":"IF(AND(AND(D119<>\"\",D119<>\"NPD\"),AND(D120<>\"NPD\",D120<>\"\")),\"Stoßfestigkeit: \"&D119&\"/\"&D120,\"\")","v":""},0,22,"S, DMC"]
["2",null,"Innen(seite):"]
["3",null,"Außen(seite):"]
["4",{"$nulls":4},0]
["5",{"$nulls":4},0]
["@WM11",{"$f":"IF(E123<>\"\",\"1\",\"0\")","v":"0"},"4.15 Temperaturwechselbeständigkeit (des Glases)\n   (Angabe der Glasart, z. B. gehärtet, teilvorgespannt, \n   vorgespannt,    -->, Float, TVG, ESG, ESG-HST, …)",null,{"$f":"IF(AND(D123<>\"npd\",D123<>\"\"),\"Tԝᴇᴄʜsᴇʟ: \"&D123,\"\")","v":""},0,25,"S, DMC"]
["2",{"$nulls":4},0]
["3",{"$nulls":4},0]
["4",{"$nulls":4},0]
["5",{"$nulls":4},0]
["@WM12",{"$f":"IF(E128<>\"\",\"1\",\"0\")","v":"0"},"4.17 Widerstand gegen horizontale Nutzlasten: \n        Fʜοʀ│Hʙʀ [kN|m]:",{"$f":"IF(AND(OR(D129=\"\",D129=\"npd\"),OR(D130=\"\",D130=\"npd\")),\"\",IF(AND(OR(D129<>\"\",D129<>\"npd\"),OR(D130=\"\",D130=\"npd\")),\"Angaben für Horizontallast und Höhe erforderlich.\",IF(AND(OR(D129=\"\",D129=\"npd\"),OR(D130<>\"\",D130<>\"npd\")),\"Angaben für Horizontallast und Höhe erforderlich.\",\"\")))","v":""},{"$f":"IF(AND(AND(D129<>0,D129<>\"NPD\"),AND(D130<>\"NPD\",D130<>\"\")),\"Fʜοʀ│Hʙʀ [kN│m]: \"&D129&\"│\"&D130,\"\")","v":""},0,25,"S, DMC"]
["2",null,"Horizontallast in Höhe des Brüstungsriegels [kN]"]
["3",null,"Höhe des Brüstungsriegels [m]"]
["4",{"$nulls":4},0]
["5",{"$nulls":4},0]
["@WM13",{"$f":"IF(E133<>\"\",\"1\",\"0\")","v":"0"},"4.7 Wärmedurchgangswert UCW[W/(m²K)]: X,Y",null,{"$f":"IF(OR(D133=\"\",D133=\"npd\"),\"\",IF(D133>0,\"Uᴄԝ [W/(m²K)]: \"&TEXT(D133,\"0,0\"),\"\"))","v":""},0,20,"S, DMC"]
["2",null,"Q: Luftdurchlässigkeitsklassen für A und AL (EN 12152:2023):\n     A [m³/(m²*h)]: bezogen auf die Fläche\n     AL  [m³/(m·h)]: bezogen auf die Fugenlänge\nWenn sich die Klassen A und AL voneinander unterscheiden, muss die Klassifizierung für A und AL angegeben werden."]
["3",{"$nulls":4},0]
["4",{"$nulls":4},0]
["5",{"$nulls":4},0]
["@WM14",{"$f":"IF(E138<>\"\",\"1\",\"0\")","v":"0"},"a) Luftdurchlässigkeitsklassen (A) bezogen auf die \n    Gesamtfläche",{"$f":"IF(AND(OR(D139=\"npd\",D139=\"\"),OR(D140=\"npd\",D140=\"\"),OR(D141=\"npd\",D141=\"\")),\"\",IF(AND(OR(D139=\"npd\",D139=\"\"),AND(D140<>\"npd\",D140<>\"\"),OR(D141=\"npd\",D141=\"\")),\"Unterschiedliche (+)- und (-)-Klassifizierung oder betragsmäßige Klassifizierung wählen.\",IF(AND(OR(D139=\"npd\",D139=\"\"),OR(D140=\"npd\",D140=\"\"),AND(D141<>\"npd\",D141<>\"\")),\"Unterschiedliche (+)- und (-)-Klassifizierung oder betragsmäßige Klassifizierung wählen.\",IF(AND(AND(D139<>\"npd\",D139<>\"\"),AND(D140<>\"npd\",D140<>\"\"),OR(D141=\"npd\",D141=\"\")),\"Unterschiedliche (+)- und (-)-Klassifizierung oder betragsmäßige Klassifizierung wählen.\",IF(AND(AND(D139<>\"npd\",D139<>\"\"),OR(D140=\"npd\",D140=\"\"),AND(D141<>\"npd\",D141<>\"\")),\"Unterschiedliche (+)- und (-)-Klassifizierung oder betragsmäßige Klassifizierung wählen.\",IF(AND(AND(D139<>\"npd\",D139<>\"\"),AND(D140<>\"npd\",D140<>\"\"),AND(D141<>\"npd\",D141<>\"\")),\"Unterschiedliche (+)- und (-)-Klassifizierung oder betragsmäßige Klassifizierung wählen.\",\"\"))))))","v":""},{"$f":"IF(AND(D139<>\"\",D139<>\"npd\",D140=\"\",D141=\"\"),\"Q: \"&D139,IF(AND(AND(D139<>\"\",D139<>\"npd\"),AND(D140<>\"\",D140<>\"npd\"),AND(D141<>\"\",D141<>\"npd\")),\"Q: \"&D140&\"/\"&D141,IF(AND(OR(D139=\"\",D139=\"npd\"),AND(D140<>\"\",D140<>\"npd\"),AND(D141<>\"\",D141<>\"npd\")),\"Q: \"&D140&\"/\"&D141,\"\")))","v":""},0,20,"S, DMC"]
["2",null,"bei betragsmäßig gleichen positiven und negativen Drücken:"]
["3",null,"A(+) bei unterschiedlichen Drücken [m³/(m²*h)]"]
["4",null,"A(-) bei unterschiedlichen Drücken [m³/(m²*h)]"]
["5",{"$nulls":4},0]
["@WM15",{"$f":"IF(E143<>\"\",\"1\",\"0\")","v":"0"},"b) Luftdurchlässigkeitsklassen (AL) bez. auf die feste \n    Fugenlänge:",{"$f":"IF(AND(OR(D144=\"npd\",D144=\"\"),OR(D145=\"npd\",D145=\"\"),OR(D146=\"npd\",D146=\"\")),\"\",IF(AND(OR(D144=\"npd\",D144=\"\"),AND(D145<>\"npd\",D145<>\"\"),OR(D146=\"npd\",D146=\"\")),\"Unterschiedliche (+)- und (-)-Klassifizierung oder betragsmäßige Klassifizierung wählen.\",IF(AND(OR(D144=\"npd\",D144=\"\"),OR(D145=\"npd\",D145=\"\"),AND(D146<>\"npd\",D146<>\"\")),\"Unterschiedliche (+)- und (-)-Klassifizierung oder betragsmäßige Klassifizierung wählen.\",IF(AND(AND(D144<>\"npd\",D144<>\"\"),AND(D145<>\"npd\",D145<>\"\"),OR(D146=\"npd\",D146=\"\")),\"Unterschiedliche (+)- und (-)-Klassifizierung oder betragsmäßige Klassifizierung wählen.\",IF(AND(AND(D144<>\"npd\",D144<>\"\"),OR(D145=\"npd\",D145=\"\"),AND(D146<>\"npd\",D146<>\"\")),\"Unterschiedliche (+)- und (-)-Klassifizierung oder betragsmäßige Klassifizierung wählen.\",IF(AND(AND(D144<>\"npd\",D144<>\"\"),AND(D145<>\"npd\",D145<>\"\"),AND(D146<>\"npd\",D146<>\"\")),\"Unterschiedliche (+)- und (-)-Klassifizierung oder betragsmäßige Klassifizierung wählen.\",\"\"))))))","v":""},{"$f":"IF(AND(D144<>\"\",D144<>\"npd\",D145=\"\",D146=\"\"),\"Q: \"&D144,IF(AND(AND(D144<>\"\",D144<>\"npd\"),AND(D145<>\"\",D145<>\"npd\"),AND(D146<>\"\",D146<>\"npd\")),\"Q: \"&D145&\"/\"&D146,IF(AND(OR(D144=\"\",D144=\"npd\"),AND(D145<>\"\",D145<>\"npd\"),AND(D146<>\"\",D146<>\"npd\")),\"Q: \"&D145&\"/\"&D146,\"\")))","v":""},0,20,"S, DMC"]
["2",null,"bei betragsmäßig gleichen positiven und negativen Drücken:"]
["3",null,"AL(+) bei unterschiedlichen Drücken [m³/(m*h)]"]
["4",null,"AL(-) bei unterschiedlichen Drücken [m³/(m*h)]"]
["5",{"$nulls":4},0]
["@WM16",{"$f":"IF(E148<>\"\",\"1\",\"0\")","v":"0"},"Luftschalldämmung: RW = RW (C; Ctr) dB \n(wenn, dann RW, C und Ctr angeben)",{"$f":"IF(AND(AND(D149<>\"\",D149<>\"npd\"),OR(D150=\"\",D150=\"npd\"),AND(D151<>\"\",D151<>\"npd\")),\"Zusätzlicher Spektrumanpassungswert erforderlich.\",IF(AND(AND(D149<>\"\",D149<>\"npd\"),AND(D150<>\"\",D150<>\"npd\"),OR(D151=\"\",D151=\"npd\")),\"Zusätzlicher Spektrumanpassungswert erforderlich.\",IF(AND(AND(D149<>\"\",D149<>\"npd\"),OR(D150=\"\",D150=\"npd\"),OR(D151=\"\",D151=\"npd\")),\"Zusätzlich Spektrumanpassungswerte erforderlich.\",IF(AND(OR(D149=\"\",D149=\"npd\"),OR(D150=\"\",D150=\"npd\"),AND(D151<>\"\",D151<>\"npd\")),\"Kein Wert oder alle drei Werte.\",IF(AND(OR(D149=\"\",D149=\"npd\"),OR(D151=\"\",D151=\"npd\"),AND(D150<>\"\",D150<>\"npd\")),\"Kein Wert oder alle drei Werte.\",IF(AND(OR(D149=\"\",D149=\"npd\"),AND(D151<>\"\",D151<>\"npd\"),AND(D150<>\"\",D150<>\"npd\")),\"Schalldämmwert erforderlich.\",\"\"))))))","v":""},{"$f":"IF(AND(AND(AND(D149<>0,D149<>\"npd\"),AND(D150<>\"\",D150<>\"npd\")),AND(D151<>\"\",D151<>\"npd\")),\"Rw [dB]: \"&D149&\" (\"&D150&\"; \"&D151&\")\",\"\")","v":""},0,21,"S, DMC"]
["2",null,"bewertetes Schalldämmmaß RW",{"$nulls":4},"kombiniert zu Rw"]
["3",null,"Spektrumanpassungswert C (Wohnaktivitäten)",{"$nulls":4},"kombiniert zu Rw"]
["4",null,"Spektrumsanpassungswert Ctr (Verkehrslärm)",{"$nulls":4},"kombiniert zu Rw"]
["5"]
["@END"]
[{"$nulls":3},"Datenbereich: E16:E151"]
[]
[null,null,"Vermerke AKF/ÜG:"]
[]
[null,null,"?",null,"?"]

{"sheet":"Listen","index":1,"n_rows":117,"n_cols":2,"rows_kept":117,"hidden":true}
["Verwendungszweck nach EN 12101-2","Erläuterung"]
[null,{"$f":"LEN(A2)","v":0}]
[null,{"$f":"LEN(A3)","v":0}]
[null,{"$f":"LEN(A4)","v":0}]
[null,0]
[]
["Verwendungszweck nach EN 16034, T2"]
["als Pfosten-Riegel-Konstruktion",{"$f":"LEN(A8)","v":31}]
["als Elementbauweise",19]
["als Brüstungsbauweise",21]
[]
["Klassifizierung desFeuerwiderstandes"]
["npd"]
["(i→o)"]
["(o→i)"]
["(o↔i)"]
[]
[]
["Luftdurchlässigkeitsklassen (A) bei positiven oder negativen Drücken, bezogen auf die\nGesamtfläche",98]
["A betragsmäßig gleich",21]
["npd",3]
["A1",2]
["A2",2]
["A3",2]
["A4",2]
["AE(750)",7]
["AE(900)",7]
["AE(1050)",8]
["AE(1200)",8]
[]
["A unterschiedlich (+) und (-)",29]
[null,0]
["A1(+)",5]
["A2(+)",5]
["A3(+)",5]
["A4(+)",5]
["AE(+750)",8]
["AE(+900)",8]
["AE(+1050)",9]
["AE(+1200)",9]
[]
[null,0]
["A1(-)",5]
["A2(-)",5]
["A3(-)",5]
["A4(-)",5]
["AE(-750)",8]
["AE(-900)",8]
["AE(-1050)",9]
["AE(-1200)",9]
[]
["Luftdurchlässigkeitsklassen (AL) bei positiven oder negativen Drücken, bezogen auf die\nfeste Fugenlänge"]
[]
["AL betragsmäßig gleich",22]
["npd",3]
["Aւ1",3]
["Aւ2",3]
["Aւ3",3]
["Aւ4",3]
["Aւ(750)",7]
["Aւ(900)",7]
["Aւ(1050)",8]
["Aւ(1200)",8]
[]
["AL unterschiedlich (+) und (-)",30]
[]
[]
["Aւ1(+)",6]
["Aւ2(+)",6]
["Aւ3(+)",6]
["Aւ4(+)",6]
["Aւ(+750)",8]
["Aւ(+900)",8]
["Aւ(+1050)",9]
["Aւ(+1200)",9]
[]
[]
["Aւ1(-)",6]
["Aւ2(-)",{"$f":"LEN(A79)","v":6}]
["Aւ3(-)",6]
["Aւ4(-)",6]
["Aւ1(-750)",9]
["Aւ2(-900)",9]
["Aւ3(-1050)",10]
["Aւ4(-1200)",10]
[]
["Klassifizierung der internen Stoßbelastung"]
[]
["npd",3]
["I0",2]
["I1",2]
["I2",2]
["I3",2]
["I4",2]
["I5",2]
[]
["Klassifizierung der externen Stoßbelastung"]
[null,0]
["npd",3]
["E0",2]
["E1",2]
["E2",2]
["E3",2]
["E4",2]
["E5",2]
[]
["Schlagregendichtheit",20]
[null,0]
["npd",3]
["R4",2]
["R5",2]
["R6",2]
["R7",2]
["RE 750",6]
["RE 900",6]
["RE 1050",7]
["RE 1200",7]

{"sheet":"T2","index":2,"n_rows":10,"n_cols":6,"rows_kept":10,"hidden":true}
["Lfd. Nr.","Organisation","Strasse","Ort","E-Mail f. FA, BA, KA","Anmeldefrist"]
[1,"An die\nÜberwachungsgemeinschaft für Feuerschutz-, Rauchschutz- \nund Schutzraumabschlüsse Berlin/Brandenburg e. V.\nMahlsdorfer Str. 61b\n15366 Hoppegarten","Mahlsdorfer Str. 61 b","15366 Hoppegarten","feuerschutz-berlin@t-online.de ","Bitte melden Sie Ihre Fertigung mindestens 2 Wochen vor Produktionsbeginn an."]
[2,"An den\nArbeitskreis der Überwachungsgemeinschaften für Feuer-\nschutz-, Rauchschutz- und Schutzraumabschlüsse e. V.\nGraf-Spee-Str. 13\n45133 Essen","Graf-Spee-Str. 13","45133 Essen","schilder-bestellung@akf-ev.de ","Bitte melden Sie Ihre Fertigung mindestens 4 Wochen vor Produktionsbeginn an."]
[3,"An die \nÜberwachungsgemeinschaft Feuerschutztüren \nNiedersachsen/Bremen/Sachsen-Anhalt e. V.\nHeidering 29\n30625 Hannover","Heidering 29","30625 Hannover","schilder@feuerschutztueren.com","Bitte melden Sie Ihre Fertigung mindestens 2 Wochen vor Produktionsbeginn an."]
[4,"An die\nÜberwachungsgemeinschaft  West e. V.\nGraf-Spee-Str. 13\n45133 Essen","Graf-Spee-Str. 13","45133 Essen","schilder-bestellung@nrw.ueg-ev.de ","Bitte melden Sie Ihre Fertigung mindestens 4 Wochen vor Produktionsbeginn an."]
[6,"An die\nÜberwachungsgemeinschaft  West e. V.\nGraf-Spee-Str. 13\n45133 Essen","Graf-Spee-Str. 13","45133 Essen","schilder-bestellung@nrw.ueg-ev.de ","Bitte melden Sie Ihre Fertigung mindestens 4 Wochen vor Produktionsbeginn an."]
[7,"An die\nÜberwachungsgemeinschaft für Feuerschutz-, Rauchschutz- \nund Schutzraumabschlüsse Baden-Württemberg e. V.\nSchönestr. 35/1\n70372 Stuttgart","Schönestr. 35/1","70372 Stuttgart","schilder-bestellungen@feuerschutz-bw.de","Bitte melden Sie Ihre Fertigung mindestens 2 Wochen vor Produktionsbeginn an."]
[8,"An die\nÜberwachungsgemeinschaft für Feuerschutz-, Rauchschutz- \nund Schutzraumabschlüsse Bayern e. V.\nNeuburgstr. 1c\n83620 Feldkirchen-Westerham","Neuburgstr. 1c","83620 Feldkirchen-Westerham","bestellungen@feuerschutz-bayern.de","Bitte melden Sie Ihre Fertigung mindestens 2 Wochen vor Produktionsbeginn an."]
[9,"An die\nÜberwachungsgemeinschaft für Feuerschutz-, Rauchschutz- \nund Schutzraumabschlüsse Sachsen e. V.\nBreitscheidstr. 45\n01156 Dresden","Breitscheidstr. 45","01156 Dresden","bestellung@feuerschutzinfo.de","Bitte melden Sie Ihre Fertigung mindestens 2 Wochen vor Produktionsbeginn an."]
[11,"An die\nÜberwachungsgemeinschaft NORD für Feuerschutz-, Rauch-\nschutz- und Schutzraumabschüsse der Länder Schleswig-Holstein, Mecklenburg-Vorpommern u. Hamburg e. V.\nRendsburger Landstr. 211\n24113 Kiel","Rendsburger Landstr. 211","24113 Kiel","info@feuerschutz-nord.de","Bitte melden Sie Ihre Fertigung mindestens 2 Wochen vor Produktionsbeginn an."]